bitfinex-derivatives/quotes_ETHF0:USTF0_20260308
["timestamp","ask_amount","ask_price","bid_price","bid_amount"]
[1772939167378,4.41642457,1948.4,1947.7,4.1638858]
[1772939170570,4.41642457,1948.4,1947.7,0.00598305]
[1772939170976,4.41258124,1948.2,1947.7,4.1638858]
[1772939171477,4.41642457,1948.4,1947.7,4.1638858]
[1772939171775,0.00384333,1948.4,1947.7,4.1638858]
[1772939172580,4.41642457,1948.4,1947.7,4.1638858]
[1772939173176,4.41258124,1948.6,1947.7,4.1638858]
[1772939175377,4.41258124,1948.8,1947.7,4.1638858]
[1772939175581,0.40913786,1948.9,1947.7,4.1638858]
[1772939175582,4.41258124,1948.6,1947.7,4.1638858]
[1772939176281,4.41258124,1948.6,1947.7,3.1638858]
[1772939176282,4.41856429,1948.6,1947.7,3.1638858]
[1772939176482,4.41258124,1948.4,1947.7,3.1638858]
[1772939177286,4.41258124,1948.2,1947.7,0.0038101]
[1772939178282,4.41258124,1948.2,1947.7,4.16171285]
[1772939182987,4.41258124,1948.4,1947.3,4.15790275]
[1772939183792,4.41258124,1948.4,1947.5,4.15790275]
[1772939183989,4.41258124,1948.4,1947.5,4.16417856]
[1772939201207,0.00598305,1948.6,1947.5,4.16417856]
[1772939201415,4.82699832,1948.6,1947.5,4.16417856]
[1772939201710,4.82101527,1948.4,1947.5,4.16417856]
[1772939217428,5.07765527,1948.5,1947.5,4.16417856]
[1772939217629,0.00598305,1948.6,1947.7,4.69262989]
[1772939220229,4.82699832,1948.6,1947.7,4.69262989]
[1772939220723,5.08363832,1948.6,1947.7,4.69262989]
[1772939223527,4.37374411,1948.4,1947.7,4.69262989]
[1772939232446,4.37374411,1948.3,1947.7,4.69262989]
[1772939234546,0.26262305,1948.6,1947.7,4.69262989]
[1772939234738,0.26262305,1948.6,1948.0,4.68512836]
[1772939236850,0.00598305,1948.6,1948.0,4.68512836]
[1772939237347,4.37972716,1948.6,1948.0,4.68512836]
[1772939242551,4.37374411,1948.1,1947.6,4.68512836]
[1772939243753,10.0,1948.4,1948.0,4.68512836]
[1772939243949,9.63466571,1948.4,1948.0,4.68512836]
[1772939244751,7.36780947,1948.4,1948.0,4.68512836]
[1772939244949,2.41113286,1948.4,1948.0,4.68512836]
[1772939246355,7.15535591,1948.4,1948.0,4.68512836]
[1772939246550,2.41113286,1948.4,1948.0,4.68512836]
[1772939252161,1.81018396,1948.4,1948.0,4.68512836]
[1772939254061,1.80928121,1948.4,1948.0,4.68512836]
[1772939257370,6.8964301,1948.4,1948.0,4.68512836]
[1772939258274,1.80928121,1948.4,1948.0,4.68512836]
[1772939260480,0.00598305,1948.6,1948.1,20.1639111]
[1772939260673,0.00598305,1948.6,1948.1,20.1629111]
[1772939261571,0.00598305,1948.6,1948.2,0.1048458]
[1772939264079,5.05751023,1948.6,1948.2,0.1048458]
[1772939264281,0.00598305,1948.6,1948.2,0.1048458]
[1772939264474,5.05152718,1948.8,1948.2,0.1048458]
[1772939265480,5.05533728,1948.8,1948.2,0.1048458]
[1772939267085,0.0038101,1948.8,1948.2,0.1048458]
[1772939267283,5.05472441,1949.2,1948.6,0.15968254]
[1772939267683,5.05472441,1949.2,1948.8,0.15626721]
[1772939268384,5.05472441,1949.2,1948.6,0.18670118]
[1772939269378,5.05472441,1949.2,1948.4,0.18325667]
[1772939269981,5.08329763,1948.9,1948.3,18.64]
[1772939270277,5.08329763,1948.9,1948.3,18.74577078]
[1772939270473,5.08329763,1948.9,1948.4,0.10577078]
[1772939274087,1.4349111,1948.8,1948.0,40.8]
[1772939274291,4.9813968,1948.7,1948.3,18.66]
[1772939274790,4.9813968,1948.7,1948.3,16.60685249]
[1772939275792,4.9813968,1948.7,1948.3,19.09177074]
[1772939276093,4.9813968,1948.7,1948.4,2.50443783]
[1772939276487,4.9813968,1948.7,1948.3,19.11129032]
[1772939276688,4.9813968,1948.7,1948.3,16.60685249]
[1772939276994,4.9813968,1948.7,1948.3,19.10845006]
[1772939278188,4.9813968,1948.7,1948.3,16.60685249]
[1772939278787,4.9813968,1948.7,1948.3,19.29693345]
[1772939280490,4.9813968,1948.7,1948.3,16.60685249]
[1772939281592,1.6914911,1949.0,1948.3,16.60685249]
[1772939281593,4.9064275,1948.9,1948.4,2.67970009]
[1772939282091,4.9064275,1948.9,1948.3,19.28394529]
[1772939283992,4.9064275,1948.9,1948.3,16.60685249]
[1772939288296,4.9064275,1948.9,1948.3,15.60685249]
[1772939291200,4.9064275,1948.9,1948.2,21.42684744]
[1772939294406,4.9064275,1948.9,1948.2,18.757]
[1772939294706,4.76362924,1948.7,1948.2,18.757]
[1772939295211,4.76362924,1948.7,1948.2,21.16485231]
[1772939295906,4.76362924,1948.7,1948.2,18.757]
[1772939296806,4.76362924,1948.7,1948.2,18.793]
[1772939297610,4.76362924,1948.7,1948.2,21.18439032]
[1772939297909,4.76362924,1948.5,1948.2,18.793]
[1772939298604,4.53892391,1948.5,1948.2,21.19064351]
[1772939298804,4.76362924,1948.7,1948.3,2.39764351]
[1772939303310,5.02025924,1948.7,1947.8,21.98656974]
[1772939303512,5.02025924,1948.7,1947.9,3.14356974]
[1772939305212,4.76362924,1949.1,1948.2,4.96379818]
[1772939305412,4.76362924,1948.9,1948.4,4.96379818]
[1772939306515,4.76362924,1949.1,1948.5,4.96379818]
[1772939307611,4.76362924,1948.9,1948.2,4.96379818]
[1772939307816,4.76362924,1948.9,1948.3,18.874]
[1772939308011,4.76362924,1948.9,1948.3,23.83779818]
[1772939310318,4.76362924,1948.9,1948.4,4.96379818]
[1772939311618,4.76362924,1948.9,1948.2,4.96379818]
[1772939311814,4.76362924,1948.7,1948.2,4.96379818]
[1772939312711,4.76362924,1948.7,1948.0,5.13123697]
[1772939312918,5.14174641,1948.5,1948.0,5.13123697]
[1772939313314,5.14174641,1948.5,1947.9,5.13123697]
[1772939315825,0.25663,1948.6,1947.5,5.13751278]
[1772939315826,5.14174641,1948.0,1947.5,5.13751278]
[1772939316112,5.14174641,1948.0,1947.2,24.03823697]
[1772939316320,5.14174641,1948.0,1947.3,5.13123697]
[1772939317119,5.14742315,1948.0,1947.3,5.13712785]
[1772939320018,5.14174641,1948.6,1947.3,5.13712785]
[1772939320720,5.14174641,1948.4,1947.5,5.13123697]
[1772939325019,5.14174641,1948.8,1947.5,5.13123697]
[1772939332727,5.14174641,1948.6,1947.5,5.13123697]
[1772939333529,5.14174641,1948.4,1947.5,5.13123697]
[1772939334125,5.14174641,1948.0,1947.3,5.13712785]
[1772939334319,5.14174641,1948.0,1947.3,0.00589088]
[1772939334729,5.14174641,1947.8,1947.2,4.3246173]
[1772939335525,5.14174641,1947.8,1947.2,3.75061731]
[1772939335721,5.14793348,1947.8,1947.2,0.0045895]
[1772939336528,5.14793348,1947.8,1947.2,5.13582647]
[1772939337226,5.14793348,1947.8,1947.2,0.0045895]
[1772939338526,5.14174641,1947.6,1947.2,0.0045895]
[1772939338735,5.14174641,1947.6,1947.0,5.13123697]
[1772939339634,5.14174641,1947.6,1947.0,5.13787281]
[1772939346033,5.14174641,1947.6,1947.0,0.00663584]
[1772939346537,5.14174641,1947.6,1947.0,5.52702502]
[1772939347332,5.37963694,1947.8,1947.0,5.52702502]
[1772939347537,5.63637694,1947.8,1947.0,5.52702502]
[1772939348740,5.37344987,1947.6,1947.0,5.52702502]
[1772939349034,5.37344987,1947.6,1946.7,5.52038918]
[1772939349340,5.37344987,1947.2,1946.7,5.52038918]
[1772939349534,5.63024987,1947.3,1946.7,5.52038918]
[1772939349838,0.2568,1947.3,1946.7,5.52038918]
[1772939350038,5.37344987,1947.7,1946.7,5.52038918]
[1772939350338,5.37344987,1947.7,1946.7,5.52573664]
[1772939357046,0.00618707,1947.8,1946.7,5.52573664]
[1772939359839,5.37344987,1948.2,1946.7,5.52573664]
[1772939360038,5.37344987,1948.2,1946.9,5.52038918]
[1772939360348,5.63010987,1948.4,1947.1,5.52038918]
[1772939360548,5.63010987,1948.4,1947.5,5.52038918]
[1772939360949,5.63537049,1948.4,1947.5,5.52038918]
[1772939361147,5.37871049,1948.4,1947.5,5.52038918]
[1772939362748,5.37871049,1948.4,1947.6,5.52038918]
[1772939366455,5.37871049,1948.4,1947.7,5.52038918]
[1772939369658,0.00526062,1948.4,1947.7,6.95511325]
[1772939369955,0.00526062,1948.4,1947.8,5.52038918]
[1772939371555,5.37871049,1948.4,1947.8,5.52038918]
[1772939373558,5.34471399,1948.3,1947.8,5.52038918]
[1772939377660,1.43998469,1948.4,1947.8,5.52038918]
[1772939377861,6.78469868,1948.4,1947.8,5.52038918]
[1772939378056,5.34471399,1948.3,1947.8,5.52038918]
[1772939380459,1.43472407,1948.2,1947.7,5.34866532]
[1772939380664,5.34471399,1948.1,1947.7,5.34866532]
[1772939381662,6.77943806,1948.2,1947.7,5.34866532]
[1772939382057,1.43472407,1948.2,1947.7,5.34866532]
[1772939382566,6.77943806,1948.2,1947.7,5.34866532]
[1772939382763,1.43998469,1948.4,1947.7,5.34866532]
[1772939383165,6.78469868,1948.4,1947.7,5.34866532]
[1772939385572,5.34471399,1948.3,1947.7,5.34866532]
[1772939385768,6.78469868,1948.4,1947.7,5.34866532]
[1772939387768,5.34471399,1948.3,1947.7,5.34866532]
[1772939389275,1.43998469,1948.4,1947.5,5.34866532]
[1772939389276,5.34471399,1947.9,1947.5,5.34866532]
[1772939389770,5.34471399,1947.9,1947.4,24.11966532]
[1772939389971,5.34471399,1947.6,1947.3,5.33669817]
[1772939390269,5.34471399,1947.6,1947.2,5.34866532]
[1772939390869,5.34471399,1947.9,1947.2,5.34866532]
[1772939393471,5.34471399,1947.7,1947.2,5.34866532]
[1772939395275,1.43472407,1947.8,1946.9,5.34866532]
[1772939395276,5.34471399,1947.3,1946.9,5.34866532]
[1772939395475,6.77943806,1947.4,1946.9,5.34866532]
[1772939396072,5.34471399,1947.4,1946.9,5.34866532]
[1772939396375,5.34471399,1947.3,1946.7,5.35401278]
[1772939396879,5.34471399,1947.5,1946.7,5.35401278]
[1772939397369,1.43472407,1947.0,1946.1,5.34866532]
[1772939397574,5.34471399,1946.9,1946.1,5.34866532]
[1772939398073,5.34471399,1946.7,1946.2,5.34866532]
[1772939398376,0.00508347,1946.7,1946.3,5.34866532]
[1772939398876,5.34979746,1946.7,1946.2,5.35489201]
[1772939399077,5.34979746,1946.7,1946.2,0.00622669]
[1772939399278,5.34471399,1946.6,1946.2,0.00622669]
[1772939400279,5.34471399,1946.6,1946.2,5.35489201]
[1772939400582,5.34471399,1946.6,1946.2,0.00622669]
[1772939401377,5.34471399,1946.6,1946.0,5.34866532]
[1772939401580,5.34471399,1946.6,1945.9,24.16166532]
[1772939401776,5.34979746,1946.7,1946.0,5.34866532]
[1772939401976,5.34979746,1946.7,1946.1,5.34866532]
[1772939402282,5.34979746,1946.7,1946.1,5.35407502]
[1772939402481,5.85368845,1947.5,1946.7,5.59634351]
[1772939402977,5.85368845,1947.5,1946.9,5.59634351]
[1772939403378,5.85845183,1947.5,1946.9,5.59634351]
[1772939403573,5.85845183,1947.5,1946.8,1.43472407]
[1772939403574,5.85845183,1947.5,1946.8,5.59634351]
[1772939404284,5.85368845,1947.3,1946.8,5.59634351]
[1772939404774,5.85368845,1947.3,1946.6,5.59634351]
[1772939414488,5.85845183,1947.5,1946.6,5.59634351]
[1772939422498,0.00476338,1947.5,1946.6,5.59634351]
[1772939423589,5.85368845,1947.8,1946.6,5.59634351]
[1772939424395,6.98668,1948.2,1946.6,5.59634351]
[1772939424595,5.85368845,1948.1,1946.6,5.59634351]
[1772939427401,5.85368845,1948.1,1946.8,5.59634351]
[1772939444820,5.63580869,1948.2,1947.2,5.65630677]
[1772939445016,5.63064462,1948.4,1947.4,5.65630677]
[1772939445318,5.63064462,1948.6,1947.4,5.65630677]
[1772939445519,5.63064462,1948.6,1947.6,5.65630677]
[1772939446118,5.63432357,1948.6,1947.6,5.66164441]
[1772939446516,5.63432357,1948.6,1947.8,5.65630677]
[1772939448620,5.63064462,1948.0,1947.1,19.13983536]
[1772939448922,5.63064462,1948.0,1946.4,20.38090333]
[1772939448923,5.63064462,1948.0,1947.2,5.65630677]
[1772939449225,5.63064462,1948.0,1947.3,5.65630677]
[1772939449825,5.63064462,1948.0,1947.3,5.66009643]
[1772939452320,5.63064462,1948.0,1947.3,4.66009643]
[1772939455016,5.63064462,1948.2,1947.3,4.66009643]
[1772939456630,5.63064462,1948.2,1947.2,59.518]
[1772939456631,5.88735462,1948.0,1946.8,5.65630677]
[1772939456829,5.63064462,1947.9,1946.8,5.65630677]
[1772939457625,5.63064462,1947.9,1946.8,5.66049918]
[1772939458828,5.63064462,1947.8,1946.8,5.66049918]
[1772939461127,0.2568,1947.3,1946.4,5.65630677]
[1772939461334,0.2568,1947.3,1945.6,13.48352859]
[1772939461335,5.63064462,1947.2,1946.2,24.43730677]
[1772939461627,5.63064462,1947.2,1946.3,5.65630677]
[1772939462234,5.63683971,1947.2,1946.3,5.66245478]
[1772939463335,0.00619509,1947.2,1946.3,5.66245478]
[1772939463537,6.728,1947.8,1946.3,5.66245478]
[1772939463727,5.20577316,1947.7,1946.3,5.66245478]
[1772939463928,5.20577316,1947.5,1946.3,5.66245478]
[1772939464635,5.21098126,1947.5,1946.3,5.66245478]
[1772939467339,5.21098126,1947.5,1946.5,5.60476734]
[1772939473943,5.20577316,1947.3,1946.4,24.34876734]
[1772939474344,5.20577316,1947.1,1946.4,24.34876734]
[1772939474544,5.20577316,1947.1,1946.5,5.60476734]
[1772939476748,5.20577316,1947.1,1946.4,5.60476734]
[1772939477449,5.20577316,1947.1,1946.3,24.39691535]
[1772939478353,5.20577316,1947.1,1946.4,5.60476734]
[1772939478645,5.20577316,1947.1,1945.7,0.25701]
[1772939478646,5.20577316,1946.6,1945.7,5.60476734]
[1772939478851,5.20577316,1946.8,1945.7,5.60476734]
[1772939479047,5.20577316,1946.8,1945.9,5.60476734]
[1772939479251,5.20577316,1947.1,1946.1,5.60476734]
[1772939479650,5.20577316,1947.1,1946.1,5.60854398]
[1772939486652,5.20577316,1946.9,1946.1,5.60854398]
[1772939489555,5.20577316,1946.7,1946.1,5.60854398]
[1772939491555,5.20577316,1946.7,1946.1,0.00377664]
[1772939491957,5.20577316,1946.7,1946.0,18.827]
[1772939492358,5.20577316,1946.5,1945.7,5.30560851]
[1772939492655,5.20577316,1946.5,1945.8,5.30560851]
[1772939493052,5.20577316,1946.5,1945.8,5.30968745]
[1772939494754,5.07024719,1946.9,1945.8,5.30968745]
[1772939496660,6.731,1947.0,1945.8,5.30968745]
[1772939496661,5.07024719,1946.7,1945.8,5.30968745]
[1772939496963,5.07024719,1946.5,1945.8,5.30968745]
[1772939498362,5.07024719,1947.1,1945.8,5.30968745]
[1772939498559,5.07024719,1946.9,1945.8,5.30968745]
[1772939500162,5.07024719,1946.7,1945.8,5.30968745]
[1772939500358,5.32713719,1946.6,1945.8,5.30968745]
[1772939504273,5.07024719,1947.1,1945.9,5.30560851]
[1772939518692,5.32707719,1947.2,1946.3,5.30560851]
[1772939518893,5.32707719,1947.2,1946.5,5.30560851]
[1772939519688,5.07024719,1947.2,1946.5,5.30560851]
[1772939519994,5.07024719,1947.4,1946.5,5.30560851]
[1772939520390,5.07024719,1947.4,1946.7,5.30560851]
[1772939520792,0.0052081,1947.5,1946.7,5.30560851]
[1772939523398,0.0052081,1947.5,1946.7,4.30560851]
[1772939524700,4.94760964,1947.5,1946.7,4.30560851]
[1772939525101,4.94240154,1947.7,1946.7,4.30560851]
[1772939526102,4.94807298,1947.7,1946.7,4.30560851]
[1772939530508,4.94807298,1947.7,1947.2,5.08665941]
[1772939530715,4.94240154,1947.9,1947.6,5.08665941]
[1772939531008,4.94240154,1948.1,1947.6,5.08665941]
[1772939531213,4.94240154,1948.2,1947.8,5.08665941]
[1772939531412,4.94240154,1948.6,1947.8,5.08665941]
[1772939531717,4.94877029,1948.6,1948.0,5.08665941]
[1772939535316,4.94240154,1948.5,1947.8,5.08665941]
[1772939538221,0.00636875,1948.6,1947.3,5.08665941]
[1772939538222,4.94240154,1948.3,1947.3,5.08665941]
[1772939538416,4.94240154,1948.1,1947.3,5.08665941]
[1772939538622,4.94240154,1948.5,1947.3,5.08665941]
[1772939542326,4.94240154,1948.5,1947.5,5.08665941]
[1772939547127,4.94877029,1948.6,1947.8,5.08665941]
[1772939547323,4.94877029,1948.6,1947.9,5.08665941]
[1772939548130,0.00636875,1948.6,1947.9,5.08665941]
[1772939551631,4.94877029,1948.6,1947.9,5.08665941]
[1772939556226,0.00636875,1948.6,1947.9,5.08665941]
[1772939557526,5.13912003,1949.1,1947.9,5.08665941]
[1772939557828,5.13912003,1949.1,1948.1,4.82402041]
[1772939558626,5.14374178,1949.1,1948.1,4.82402041]
[1772939559933,5.13912003,1948.9,1948.1,4.82402041]
[1772939563237,5.13912003,1948.7,1947.7,4.82402041]
[1772939573633,0.00462175,1949.1,1947.7,4.82402041]
[1772939573941,5.14374178,1949.1,1948.2,4.82402041]
[1772939574139,5.14374178,1949.1,1948.4,4.82402041]
[1772939574340,5.14374178,1949.1,1948.5,4.82402041]
[1772939580338,5.14374178,1949.1,1948.1,4.82402041]
[1772939580646,5.13912003,1948.9,1948.0,23.86102041]
[1772939581042,5.13912003,1948.9,1948.1,4.82402041]
[1772939589753,4.89542997,1949.1,1948.1,4.82402041]
[1772939598462,4.89542997,1949.1,1948.4,4.57198743]
[1772939598662,4.89542997,1949.1,1948.6,4.57198743]
[1772939598861,4.89542997,1949.1,1948.6,4.57597117]
[1772939602254,4.89542997,1949.1,1948.2,20.45361465]
[1772939602460,4.89542997,1949.1,1948.3,4.57198743]
[1772939603258,4.89542997,1949.1,1948.5,4.57198743]
[1772939605457,4.89542997,1949.1,1948.7,4.57198743]
[1772939605665,4.89080822,1949.2,1948.9,4.57198743]
[1772939605862,4.89080822,1949.9,1949.2,4.57198743]
[1772939606056,4.89080822,1949.6,1948.7,4.57198743]
[1772939606261,4.89080822,1949.4,1948.7,4.57198743]
[1772939606465,4.89080822,1949.4,1948.5,23.46898743]
[1772939606662,4.89739175,1949.4,1948.5,23.46898743]
[1772939606860,4.89739175,1949.4,1948.6,4.57198743]
[1772939608058,4.89080822,1949.2,1948.4,45.37198743]
[1772939608263,4.89080822,1949.2,1948.4,4.57198743]
[1772939610062,4.89080822,1949.0,1948.4,4.57198743]
[1772939613368,4.30333473,1948.8,1948.3,0.0041534]
[1772939616976,4.30333473,1948.8,1948.3,4.30199288]
[1772939618473,4.30333473,1948.8,1948.3,0.0041534]
[1772939618673,4.30333473,1948.8,1948.3,4.30199288]
[1772939624680,4.30333473,1948.8,1948.3,0.0041534]
[1772939627884,4.30333473,1948.8,1948.3,4.30199288]
[1772939628779,4.30333473,1948.8,1948.1,1.43361465]
[1772939628978,4.30333473,1948.8,1948.1,4.29783948]
[1772939629884,4.30333473,1948.8,1948.1,4.30227592]
[1772939630185,4.30333473,1948.8,1948.3,4.29783948]
[1772939631482,4.30333473,1948.8,1948.1,4.30227592]
[1772939641397,4.30333473,1948.8,1948.1,0.00443644]
[1772939642002,10.91950219,1949.2,1947.9,4.29783948]
[1772939642003,4.30333473,1948.6,1947.9,4.29783948]
[1772939642897,4.30333473,1948.6,1947.9,4.3041709]
[1772939643198,4.30333473,1948.6,1948.3,4.19348438]
[1772939643798,4.30333473,1948.6,1948.1,4.19348438]
[1772939649803,4.30333473,1948.6,1948.0,4.19348438]
[1772939650105,4.41968213,1948.4,1947.9,0.00633142]
[1772939657000,4.41968213,1948.4,1947.9,4.1998158]
[1772939657202,4.41968213,1948.7,1948.2,5.62709903]
[1772939658499,0.25664,1948.5,1948.2,5.62709903]
[1772939658805,4.67632213,1948.5,1948.2,5.62709903]
[1772939659601,4.67632213,1948.5,1948.2,1.43361465]
[1772939660505,4.67632213,1948.5,1948.1,4.19348438]
[1772939662306,4.41968213,1948.5,1948.1,4.19348438]
[1772939662502,4.41968213,1948.9,1948.1,4.19348438]
[1772939676820,4.41968213,1948.9,1947.9,4.46159351]
[1772939680221,4.06614243,1948.7,1947.9,4.46159351]
[1772939684723,4.06614243,1948.5,1946.9,4.45526209]
[1772939684925,4.06614243,1947.8,1946.9,4.45526209]
[1772939685320,4.06614243,1947.8,1946.9,64.01826209]
[1772939685720,4.07159154,1947.8,1946.9,23.22393692]
[1772939687223,4.07159154,1947.8,1947.0,4.45526209]
[1772939700137,0.00544911,1947.8,1947.0,4.45526209]
[1772939700837,4.07159154,1947.8,1947.0,4.45526209]
[1772939701036,4.07159154,1947.8,1947.2,4.45526209]
[1772939701330,0.00544911,1947.8,1947.2,4.45526209]
[1772939702538,3.94809122,1947.9,1947.2,4.45526209]
[1772939703538,3.95213332,1947.9,1947.2,4.45526209]
[1772939705441,3.94809122,1948.1,1947.5,4.15593395]
[1772939705639,1.82006434,1948.3,1947.5,4.15593395]
[1772939706036,1.81266224,1948.7,1948.1,4.15593395]
[1772939706442,1.81664184,1948.7,1948.1,4.15593395]
[1772939709945,2.57820411,1948.9,1948.1,4.15593395]
[1772939710943,2.58305354,1948.9,1948.1,4.15593395]
[1772939711843,0.26143943,1948.9,1948.1,4.15593395]
[1772939712143,2.4985398,1948.9,1948.1,4.15593395]
[1772939713547,2.25860612,1949.0,1948.4,4.15593395]
[1772939714445,2.26246156,1949.0,1948.4,4.16075718]
[1772939714744,2.04135127,1949.1,1948.4,4.16075718]
[1772939718547,1.85001718,1949.4,1948.4,4.16075718]
[1772939718746,1.85001718,1949.4,1948.7,4.15593395]
[1772939720449,1.85001718,1949.4,1948.9,4.15593395]
[1772939721844,1.72813708,1949.6,1949.1,4.15593395]
[1772939725247,0.25644,1950.1,1949.3,4.15593395]
[1772939725446,1.74641475,1950.0,1949.3,4.15593395]
[1772939727550,1.74641475,1950.0,1949.1,4.15593395]
[1772939727755,1.79761524,1949.6,1948.9,4.15593395]
[1772939728453,0.25648,1949.7,1949.0,4.15593395]
[1772939728657,2.01232096,1949.7,1949.2,4.15593395]
[1772939730750,0.25648,1949.7,1949.2,4.15593395]
[1772939731555,1.66782388,1949.8,1949.2,4.15593395]
[1772939733452,1.92430388,1949.8,1949.0,3.80370814]
[1772939733653,1.56065456,1949.7,1949.0,3.80370814]
[1772939734251,1.56065456,1949.7,1948.8,3.80370814]
[1772939734654,1.6777952,1949.5,1948.8,3.80370814]
[1772939738560,1.93342269,1949.4,1948.8,3.80370814]
[1772939739457,0.25652,1949.4,1949.0,3.80370814]
[1772939739761,1.64050067,1949.5,1949.0,3.80370814]
[1772939740256,1.58752795,1949.8,1949.0,3.80370814]
[1772939740462,1.58752795,1949.6,1949.0,3.80370814]
[1772939741957,5.72900693,1949.5,1949.0,3.80370814]
[1772939742163,7.24799855,1949.5,1949.0,3.80370814]
[1772939742563,1.51899162,1949.5,1949.0,3.80370814]
[1772939742760,5.76504464,1949.4,1949.0,3.80370814]
[1772939744260,5.36197126,1949.5,1949.0,3.80370814]
[1772939744662,5.64554072,1949.3,1949.0,3.80370814]
[1772939744863,5.64554072,1949.5,1949.0,3.80370814]
[1772939745063,1.44720987,1949.6,1949.0,3.80370814]
[1772939745466,5.64554072,1949.5,1949.0,3.80370814]
[1772939745664,7.09577771,1949.5,1949.0,3.80370814]
[1772939746163,1.45023699,1949.5,1949.0,3.80370814]
[1772939746358,5.42682917,1949.4,1949.0,3.80370814]
[1772939747163,5.65593047,1949.5,1949.0,3.80370814]
[1772939747556,1.38804737,1949.5,1949.0,3.80370814]
[1772939747764,7.03505133,1949.5,1949.0,3.80370814]
[1772939747964,1.38804737,1949.5,1949.0,3.80370814]
[1772939748166,5.64700396,1949.4,1949.0,3.80370814]
[1772939748361,6.9845105,1949.4,1949.0,3.80370814]
[1772939748561,5.64700396,1949.4,1949.0,3.80370814]
[1772939748866,6.77018726,1949.5,1949.0,3.80370814]
[1772939749061,1.33750654,1949.5,1949.0,3.80370814]
[1772939749261,5.43268072,1949.4,1949.0,3.80370814]
[1772939750065,6.70679926,1949.4,1949.0,3.80370814]
[1772939750366,1.27411854,1949.4,1949.0,3.80370814]
[1772939750668,5.83308315,1949.3,1949.0,3.80370814]
[1772939752269,5.93146338,1949.4,1949.0,3.80370814]
[1772939752670,1.34364568,1949.5,1949.0,3.80370814]
[1772939752866,5.5258729,1949.4,1949.0,3.80370814]
[1772939753371,5.5258729,1949.5,1949.0,3.80370814]
[1772939753572,6.85178988,1949.5,1949.0,3.80370814]
[1772939754371,1.2846828,1949.4,1949.0,3.80370814]
[1772939754674,5.4573258,1949.3,1949.0,3.80370814]
[1772939759179,6.6270072,1949.3,1949.0,3.80370814]
[1772939759577,1.1696814,1949.4,1949.0,3.80370814]
[1772939759777,5.41397036,1949.2,1949.0,3.80370814]
[1772939760078,5.41397036,1949.3,1949.0,3.80370814]
[1772939760277,5.41397036,1949.1,1949.0,3.80370814]
[1772939760478,5.4552964,1949.3,1949.0,3.80370814]
[1772939760878,1.45408415,1949.5,1949.0,3.80370814]
[1772939761080,5.4552964,1949.4,1949.0,3.80370814]
[1772939762480,4.31055808,1949.5,1949.0,3.80370814]
[1772939762679,2.28575403,1949.5,1949.0,3.80370814]
[1772939762980,5.52723578,1949.4,1949.0,3.80370814]
[1772939764182,2.74955171,1949.5,1949.0,3.80370814]
[1772939765182,2.74955171,1949.5,1948.4,40.80482323]
[1772939765183,0.2565,1949.6,1949.2,3.74061719]
[1772939765680,0.74944463,1949.5,1949.2,3.74061719]
[1772939765880,0.2565,1949.6,1949.2,3.74061719]
[1772939766180,3.77318023,1949.9,1949.4,3.74061719]
[1772939766383,3.77318023,1950.0,1949.6,3.74061719]
[1772939766579,4.02961023,1950.2,1949.8,3.74061719]
[1772939766783,3.87057803,1950.3,1949.8,3.7472354]
[1772939766985,5.58064066,1950.1,1949.8,3.7472354]
[1772939767286,3.87057803,1950.3,1950.0,3.74061719]
[1772939767481,5.58064066,1950.2,1950.0,3.74061719]
[1772939767782,3.87057803,1950.3,1950.0,3.74061719]
[1772939767985,5.20603769,1950.2,1950.0,3.74061719]
[1772939768781,5.04149328,1950.2,1950.0,3.74061719]
[1772939769084,3.87057803,1950.4,1950.0,3.74061719]
[1772939769280,4.83959551,1950.3,1950.0,3.74061719]
[1772939769682,3.87057803,1950.5,1950.0,3.74061719]
[1772939769989,5.52829195,1950.3,1950.2,3.74061719]
[1772939770288,3.87057803,1950.5,1950.2,3.74061719]
[1772939770484,0.365,1950.3,1950.2,3.74061719]
[1772939770685,5.42133924,1950.4,1950.2,3.74061719]
[1772939770985,9.29191727,1950.4,1950.0,3.74061719]
[1772939771384,3.87057803,1950.4,1950.0,3.74061719]
[1772939771578,5.13890217,1950.3,1950.0,3.74061719]
[1772939772186,3.87057803,1950.5,1950.0,3.74061719]
[1772939772481,0.63175937,1950.2,1950.0,3.74061719]
[1772939772687,3.87057803,1950.5,1950.0,3.74061719]
[1772939772987,0.231,1950.1,1950.0,3.74061719]
[1772939773187,3.87057803,1950.5,1950.0,3.74061719]
[1772939773386,5.52848354,1950.1,1950.0,3.74061719]
[1772939773687,3.87057803,1950.5,1950.0,3.74061719]
[1772939773885,5.41052284,1950.1,1950.0,3.74061719]
[1772939774086,1.59853202,1950.3,1950.0,3.74061719]
[1772939774385,3.87057803,1950.5,1950.0,3.74061719]
[1772939774583,1.90473952,1950.4,1950.0,3.74061719]
[1772939774784,0.25635,1950.8,1949.8,0.00661821]
[1772939774785,3.87057803,1950.7,1950.4,3.74061719]
[1772939776383,3.87057803,1950.7,1950.0,3.74061719]
[1772939776688,3.87057803,1950.5,1950.0,3.74061719]
[1772939776986,9.62659246,1950.4,1950.0,3.74061719]
[1772939777285,3.87057803,1950.4,1950.0,3.74061719]
[1772939777689,5.92919619,1950.3,1950.0,3.74061719]
[1772939779583,5.92919619,1950.3,1949.8,0.00661821]
[1772939779584,5.30362955,1950.3,1949.8,0.00661821]
[1772939779790,3.87057803,1950.2,1949.4,3.74061719]
[1772939780089,3.87057803,1950.1,1949.4,3.74061719]
[1772939780489,9.43760127,1950.0,1949.6,3.74061719]
[1772939780687,3.87057803,1950.6,1950.0,3.74061719]
[1772939780891,9.45309437,1950.5,1950.0,3.74061719]
[1772939781092,3.87057803,1950.5,1950.0,3.74061719]
[1772939781387,5.58251634,1950.4,1950.0,3.74061719]
[1772939781797,4.59610747,1950.5,1950.0,3.74061719]
[1772939781991,3.87057803,1950.5,1950.0,3.74061719]
[1772939782193,3.8756899,1950.6,1950.0,3.74061719]
[1772939782495,4.32606739,1950.5,1950.0,3.74061719]
[1772939783489,0.00511187,1950.6,1950.0,3.74061719]
[1772939783790,2.83486748,1950.5,1950.0,3.74061719]
[1772939783995,0.40449582,1950.5,1950.0,3.74061719]
[1772939784189,3.87057803,1950.9,1950.0,3.74061719]
[1772939784390,5.24068946,1950.8,1950.0,3.74061719]
[1772939784694,4.83769998,1950.8,1950.0,3.74061719]
[1772939784895,0.69966846,1950.7,1950.0,3.74061719]
[1772939785092,5.25964162,1950.7,1950.0,3.74061719]
[1772939787396,4.8946116,1950.4,1950.0,3.74061719]
[1772939787695,5.34564936,1950.3,1950.0,3.74061719]
[1772939788293,4.8455449,1950.8,1950.0,3.74061719]
[1772939788693,5.71709986,1950.3,1950.0,3.74061719]
[1772939788894,5.99102464,1950.6,1950.0,3.74061719]
[1772939789094,7.30934521,1950.6,1950.0,3.74061719]
[1772939789393,5.99102464,1950.6,1950.0,3.74061719]
[1772939789594,6.21818302,1950.5,1950.0,3.74061719]
[1772939789794,5.91129795,1950.5,1950.0,3.74061719]
[1772939790194,6.85811665,1950.7,1950.0,3.74061719]
[1772939790397,6.21818302,1950.6,1950.0,3.74061719]
[1772939791098,6.59578046,1950.9,1950.3,1.43137795]
[1772939791297,5.57186061,1950.5,1950.3,1.43137795]